fUSD/lending_fUSD_20240125
["ID","MTS","AMOUNT","RATE_DAILY","PERIOD"]
[312729226,1706189494601,-697.52,0.00053424,31]
[312729227,1706189494611,-151.0,0.00053424,2]
[312729228,1706189494620,-1219.85,0.00053424,31]
[312729229,1706189494630,-500.0,0.00053424,31]
[312729230,1706189494646,-2328.6,0.00053424,31]
[312729231,1706189494659,-500.0,0.00053424,31]
[312729232,1706189494670,-380.50262776,0.00053424,31]
[312729233,1706189494680,-553.77,0.00053424,31]
[312729234,1706189494690,-2392.7,0.00053424,31]
[312729235,1706189494700,-500.0,0.00053424,31]
[312729236,1706189494710,-742.25,0.00053424,31]
[312729237,1706189494720,-500.0,0.00053424,31]
[312729238,1706189494730,-472.86009317,0.00053424,31]
[312729239,1706189494739,-766.81,0.00053424,31]
[312729240,1706189494749,-1000.0,0.00053424,20]
[312729241,1706189494759,-1000.0,0.00053424,20]
[312729242,1706189494769,-1000.0,0.00053424,20]
[312729243,1706189494779,-1000.0,0.00053424,20]
[312729244,1706189494788,-1000.0,0.00053424,20]
[312729245,1706189494798,-1000.0,0.00053424,20]
[312729246,1706189494808,-449.73933837,0.00053424,31]
[312729247,1706189494818,-1000.0,0.00053424,20]
[312729248,1706189494827,-1000.0,0.00053424,20]
[312729249,1706189494837,-500.0,0.00053424,31]
[312729250,1706189494847,-1000.0,0.00053424,20]
[312729251,1706189494860,-1000.0,0.00053424,20]
[312729252,1706189494869,-720.22,0.00053424,31]
[312729253,1706189494879,-1000.0,0.00053424,20]
[312729254,1706189494889,-1000.0,0.00053424,20]
[312729255,1706189494899,-408.31814784,0.00053424,20]
[312729256,1706189494909,-500.0,0.00053424,31]
[312729257,1706189494919,-506.85,0.00053424,31]
[312729258,1706189494930,-2585.71,0.00053424,31]
[312729259,1706189494939,-895.53,0.00053424,2]
[312729260,1706189494948,-500.0,0.00053424,31]
[312729261,1706189494958,-1966.47,0.00053424,30]
[312729262,1706189494968,-500.0,0.00053424,31]
[312729263,1706189494979,-2028.82761915,0.00053424,120]
[312729264,1706189494989,-568.09,0.00053424,31]
[312729265,1706189495003,-500.0,0.00053424,31]
[312729266,1706189495014,-1097.13,0.00053424,31]
[312729267,1706189495023,-563.0,0.00053424,31]
[312729268,1706189495033,-678.21,0.00053424,31]
[312729269,1706189495043,-505.22,0.00053424,31]
[312729270,1706189495053,-1184.05,0.00053424,7]
[312729271,1706189495063,-1978.23,0.00053424,31]
[312729272,1706189495073,-775.02,0.00053424,31]
[312729273,1706189495083,-500.0,0.00053424,31]
[312729274,1706189495092,-186.89901,0.00053424,14]
[312729275,1706189495105,-500.0,0.00053424,31]
[312729276,1706189495115,-500.0,0.00053424,31]
[312729277,1706189495125,-500.0,0.00053424,31]
[312729278,1706189495134,-186.89901,0.00053424,14]
[312729279,1706189495144,-563.64,0.00053424,31]
[312729280,1706189495154,-1788.81,0.00053424,31]
[312729281,1706189495164,-500.0,0.00053424,31]
[312729282,1706189495174,-824.87,0.00053424,31]
[312729283,1706189495183,-800.86,0.00053424,31]
[312729284,1706189495192,-500.0,0.00053424,31]
[312729285,1706189495202,-624.88,0.00053424,31]
[312729286,1706189495212,-500.0,0.00053424,31]
[312729287,1706189495222,-435.68791654,0.00053424,31]
[312729288,1706189495233,-500.0,0.00053424,31]
[312729289,1706189495243,-500.0,0.00053424,31]
[312729290,1706189495252,-3861.01,0.00053424,5]
[312729291,1706189495262,-500.0,0.00053424,31]
[312729292,1706189495272,-500.0,0.00053424,31]
[312729293,1706189495284,-500.0,0.00053424,31]
[312729294,1706189495294,-562.52,0.00053424,31]
[312729295,1706189495304,-702.37,0.00053424,31]
[312729296,1706189495314,-500.0,0.00053424,31]
[312729297,1706189495323,-500.0,0.00053424,31]
[312729298,1706189495333,-500.0,0.00053424,31]
[312729299,1706189495342,-1562.8,0.00053424,31]
[312729300,1706189495352,-729.44,0.00053424,31]
[312729301,1706189495361,-674.25,0.00053424,31]
[312729302,1706189495371,-500.0,0.00053424,31]
[312729303,1706189495380,-500.0,0.00053424,31]
[312729304,1706189495392,-1360.58,0.00053424,31]
[312729305,1706189495401,-530.21,0.00053424,31]
[312729306,1706189495411,-694.83,0.00053424,2]
[312729307,1706189495423,-500.0,0.00053424,31]
[312729308,1706189495433,-500.0,0.00053424,31]
[312729309,1706189495443,-650.93,0.00053424,31]
[312729310,1706189495456,-622.63,0.00053424,31]
[312729311,1706189495466,-1172.34,0.00053424,31]
[312729312,1706189495476,-1372.24,0.00053424,31]
[312729313,1706189495485,-269.39,0.00053424,31]
[312729314,1706189495495,-500.0,0.00053424,31]
[312729315,1706189495505,-500.0,0.00053424,31]
[312729316,1706189495515,-500.0,0.00053424,31]
[312729317,1706189495525,-1771.9,0.00053424,31]
[312729318,1706189495535,-634.99,0.00053424,31]
[312729319,1706189495544,-220.0,0.00053425,11]
[312729320,1706189495554,-180.84621878,0.00053462,60]
[312729321,1706189495564,-150.0,0.00053497,2]
[312729322,1706189495574,-150.0,0.000535,120]
[312729323,1706189495583,-500000.0,0.000535,120]
[312729324,1706189495593,-500000.0,0.000535,120]
[312729325,1706189495604,-399.05880177,0.00053506,120]
[312729326,1706189495614,-180.846219,0.00053512,60]
[312729327,1706189495624,-155.21565967,0.00053534,60]
[312729328,1706189495635,-5000.0,0.00053538,4]
[312729329,1706189495646,-2000.0,0.00053612,120]
[312729330,1706189495656,-161.72775691,0.00053612,120]
[312729331,1706189495666,-150.0,0.00053695,13]
[312729332,1706189495676,-150.0,0.00053695,13]
[312729333,1706189495691,-632.99,0.00053698,31]
[312729334,1706189495706,-1224.41,0.00053698,31]
[312729335,1706189495717,-684.55,0.00053698,31]
[312729336,1706189495727,-500.0,0.00053698,31]
[312729337,1706189495737,-500.0,0.00053698,31]
[312729338,1706189495747,-591.91,0.00053698,31]
[312729339,1706189495757,-163.76052094,0.00053698,31]
[312729340,1706189495767,-500.0,0.00053698,31]
[312729341,1706189495777,-503.96,0.00053698,31]
[312729342,1706189495786,-500.0,0.00053698,31]
[312729343,1706189495797,-500.0,0.00053698,31]
[312729344,1706189495808,-170.21536444,0.00053698,31]
[312729345,1706189495818,-500.0,0.00053698,14]
[312729346,1706189495828,-504.11,0.00053698,31]
[312729347,1706189495838,-500.0,0.00053698,31]
[312729348,1706189495848,-511.82,0.00053698,31]
[312729349,1706189495859,-578.99,0.00053698,31]
[312729350,1706189495869,-440.26150157,0.00053698,2]
[312729351,1706189495879,-662.95,0.00053698,31]
[312729352,1706189495888,-505.25484799,0.00053698,31]
[312729353,1706189495898,-500.0,0.00053698,31]
[312729354,1706189495907,-500.0,0.00053698,31]
[312729355,1706189495917,-500.0,0.00053698,31]
[312729356,1706189495927,-177.43160643,0.00053698,31]
[312729357,1706189495937,-706.68,0.00053698,31]
[312729358,1706189495947,-500.0,0.00053698,31]
[312729359,1706189495957,-341.78958018,0.00053698,31]
[312729360,1706189495967,-511.95,0.00053698,31]
[312729361,1706189495978,-500.0,0.00053698,31]
[312729362,1706189495988,-500.0,0.00053698,31]
[312729363,1706189495998,-500.0,0.00053698,31]
[312729364,1706189496008,-500.0,0.00053698,31]
[312729365,1706189496018,-586.25,0.00053698,31]
[312729366,1706189496029,-500.0,0.00053698,31]
[312729367,1706189496038,-847.89,0.00053698,31]
[312729368,1706189496048,-500.0,0.00053698,31]
[312729369,1706189496059,-847.27,0.00053698,31]
[312729370,1706189496068,-553.41,0.00053698,2]
[312729371,1706189496079,-500.0,0.00053698,31]
[312729372,1706189496089,-552.54,0.00053698,31]
[312729373,1706189496099,-500.0,0.00053698,31]
[312729374,1706189496114,-500.0,0.00053698,31]
[312729375,1706189496125,-204.28138432,0.00053698,10]
[312729376,1706189496135,-533.04,0.00053698,31]
[312729377,1706189496145,-599.50899425,0.00053698,31]
[312729378,1706189496154,-500.0,0.00053698,31]
[312729379,1706189496164,-439.45144833,0.00053698,31]
[312729380,1706189496174,-1263.99,0.00053698,31]
[312729381,1706189496183,-250.34380506,0.00053698,31]
[312729382,1706189496193,-500.0,0.00053698,31]
[312729383,1706189496204,-4443.62,0.00053698,31]
[312729384,1706189496215,-500.0,0.00053698,31]
[312729385,1706189496225,-500.0,0.00053698,31]
[312729386,1706189496235,-876.57,0.00053698,31]
[312729387,1706189496323,-793.58,0.00053698,31]
[312729388,1706189496333,-605.29,0.00053698,31]
[312729389,1706189496346,-500.0,0.00053698,31]
[312729390,1706189496357,-798.73,0.00053698,31]
[312729391,1706189496367,-741.46,0.00053698,31]
[312729392,1706189496377,-522.59,0.00053698,31]
[312729393,1706189496387,-1440.42,0.00053698,31]
[312729394,1706189496396,-500.0,0.00053698,31]
[312729395,1706189496406,-3848.63,0.00053698,31]
[312729396,1706189496416,-659.44,0.00053698,31]
[312729397,1706189496425,-960.66,0.00053698,31]
[312729398,1706189496435,-3294.47,0.00053698,31]
[312729399,1706189496445,-1413.54,0.00053698,31]
[312729400,1706189496454,-557.9,0.00053698,31]
[312729401,1706189496464,-500.0,0.00053698,31]
[312729402,1706189496474,-500.0,0.00053698,31]
[312729403,1706189496483,-658.39,0.00053698,31]
[312729404,1706189496493,-500.0,0.00053698,31]
[312729405,1706189496503,-707.38,0.00053698,31]
[312729406,1706189496513,-806.49,0.00053698,31]
[312729407,1706189496523,-534.89,0.00053698,31]
[312729408,1706189496532,-1000.0,0.00053698,7]
[312729409,1706189496542,-582.56261246,0.00053698,31]
[312729410,1706189496551,-2660.25,0.00053698,31]
[312729411,1706189496561,-626.7565451,0.00053698,31]
[312729412,1706189496570,-654.66,0.00053698,31]
[312729413,1706189496580,-1220.14,0.00053698,31]
[312729414,1706189496591,-500.0,0.00053698,31]
[312729415,1706189496602,-697.52,0.00053698,31]
[312729416,1706189496611,-1219.85,0.00053698,31]
[312729417,1706189496620,-500.0,0.00053698,31]
[312729418,1706189496630,-2328.6,0.00053698,31]
[312729419,1706189496644,-500.0,0.00053698,31]
[312729420,1706189496653,-553.77,0.00053698,31]
[312729421,1706189496663,-2392.7,0.00053698,31]
[312729422,1706189496675,-500.0,0.00053698,31]
[312729423,1706189496685,-742.25,0.00053698,31]
[312729424,1706189496695,-500.0,0.00053698,31]
[312729425,1706189496705,-766.81,0.00053698,31]
[312729426,1706189496715,-564.87271021,0.00053698,31]
[312729427,1706189496726,-720.22,0.00053698,31]
[312729428,1706189496737,-500.0,0.00053698,31]
[312729429,1706189496747,-506.85,0.00053698,31]
[312729430,1706189496757,-2585.71,0.00053698,31]
[312729431,1706189496767,-895.53,0.00053698,2]
[312729432,1706189496777,-500.0,0.00053698,31]
[312729433,1706189496786,-1966.47,0.00053698,30]
[312729434,1706189496796,-500.0,0.00053698,31]
[312729435,1706189496807,-568.09,0.00053698,31]
[312729436,1706189496818,-500.0,0.00053698,31]
[312729437,1706189496827,-1097.13,0.00053698,31]
[312729438,1706189496838,-678.21,0.00053698,31]
[312729439,1706189496847,-563.0,0.00053698,31]
[312729440,1706189496859,-505.22,0.00053698,31]
[312729441,1706189496868,-1184.05,0.00053698,7]
[312729442,1706189496878,-1978.23,0.00053698,31]
[312729443,1706189496887,-775.02,0.00053698,31]
[312729444,1706189496896,-500.0,0.00053698,31]
[312729445,1706189496906,-500.0,0.00053698,31]
[312729446,1706189496915,-500.0,0.00053698,31]
[312729447,1706189496924,-500.0,0.00053698,31]
[312729448,1706189496934,-563.64,0.00053698,31]
[312729449,1706189496945,-1788.81,0.00053698,31]
[312729450,1706189496955,-500.0,0.00053698,31]
[312729451,1706189496965,-824.87,0.00053698,31]
[312729452,1706189496975,-800.86,0.00053698,31]
[312729453,1706189496985,-500.0,0.00053698,31]
[312729454,1706189496995,-624.88,0.00053698,31]
[312729455,1706189497006,-500.0,0.00053698,31]
[312729456,1706189497016,-500.0,0.00053698,31]
[312729457,1706189497026,-500.0,0.00053698,31]
[312729458,1706189497035,-3861.01,0.00053698,5]
[312729459,1706189497045,-500.0,0.00053698,31]
[312729460,1706189497054,-500.0,0.00053698,31]
[312729461,1706189497064,-500.0,0.00053698,31]
[312729462,1706189497074,-562.52,0.00053698,31]
[312729463,1706189497084,-702.37,0.00053698,31]
[312729464,1706189497094,-500.0,0.00053698,31]
[312729465,1706189497105,-500.0,0.00053698,31]
[312729466,1706189497117,-500.0,0.00053698,31]
[312729467,1706189497126,-1562.8,0.00053698,31]
[312729468,1706189497135,-729.44,0.00053698,31]
[312729469,1706189497146,-674.25,0.00053698,31]
[312729470,1706189497156,-423.47410641,0.00053698,31]
[312729471,1706189497167,-500.0,0.00053698,31]
[312729472,1706189497178,-1360.58,0.00053698,31]
[312729473,1706189497189,-530.21,0.00053698,31]
[312729474,1706189497199,-694.83,0.00053698,2]
[312729475,1706189497208,-500.0,0.00053698,31]
[312729476,1706189497218,-500.0,0.00053698,31]
[312729477,1706189497228,-650.93,0.00053698,31]
[312729478,1706189497238,-622.63,0.00053698,31]
[312729479,1706189497247,-1172.34,0.00053698,31]
[312729480,1706189497257,-1372.24,0.00053698,31]
[312729481,1706189497266,-500.0,0.00053698,31]
[312729482,1706189497276,-500.0,0.00053698,31]
[312729483,1706189497286,-500.0,0.00053698,31]
[312729484,1706189497295,-1771.9,0.00053698,31]
[312729485,1706189497305,-634.99,0.00053698,31]
[312729486,1706189497315,-157.23945592,0.00053726,30]
[312729487,1706189497325,-150.0,0.00053752,2]
[312729488,1706189497335,-780.6992596,0.00053775,87]
[312729489,1706189497345,-195.39,0.00053823,90]
[312729490,1706189497355,-155.21565969,0.00053843,60]
[312729491,1706189497365,-632.99,0.00053972,31]
[312729492,1706189497374,-1224.41,0.00053972,31]
[312729493,1706189497384,-684.55,0.00053972,31]
[312729494,1706189497393,-500.0,0.00053972,31]
[312729495,1706189497403,-500.0,0.00053972,31]
[312729496,1706189497412,-591.91,0.00053972,31]
[312729497,1706189497421,-500.0,0.00053972,31]
[312729498,1706189497431,-503.96,0.00053972,31]
[312729499,1706189497440,-500.0,0.00053972,31]
[312729500,1706189497449,-501.04754672,0.00053972,31]
[312729501,1706189497459,-500.0,0.00053972,14]
[312729502,1706189497468,-504.11,0.00053972,31]
[312729503,1706189497478,-500.0,0.00053972,31]
[312729504,1706189497487,-511.82,0.00053972,31]
[312729505,1706189497496,-578.99,0.00053972,31]
[312729506,1706189497506,-662.95,0.00053972,31]
[312729507,1706189497515,-315.4797365,0.00053972,31]
[312729508,1706189497524,-500.0,0.00053972,31]
[312729509,1706189497533,-541.08351371,0.00053972,31]
[312729510,1706189497543,-706.68,0.00053972,31]
[312729511,1706189497552,-500.0,0.00053972,31]
[312729512,1706189497562,-511.95,0.00053972,31]
[312729513,1706189497571,-500.0,0.00053972,31]
[312729514,1706189497580,-488.83266974,0.00053972,31]
[312729515,1706189497590,-500.0,0.00053972,31]
[312729516,1706189497599,-500.0,0.00053972,31]
[312729517,1706189497611,-586.25,0.00053972,31]
[312729518,1706189497620,-500.0,0.00053972,31]
[312729519,1706189497632,-847.89,0.00053972,31]
[312729520,1706189497641,-500.0,0.00053972,31]
[312729521,1706189497651,-847.27,0.00053972,31]
[312729522,1706189497661,-553.41,0.00053972,2]
[312729523,1706189497672,-500.0,0.00053972,31]
[312729524,1706189497681,-552.54,0.00053972,31]
[312729525,1706189497690,-500.0,0.00053972,31]
[312729526,1706189497700,-500.0,0.00053972,31]
[312729527,1706189497710,-533.04,0.00053972,31]
[312729528,1706189497721,-642.30478979,0.00053972,31]
[312729529,1706189497730,-1263.99,0.00053972,31]
[312729530,1706189497740,-500.0,0.00053972,31]
[312729531,1706189497749,-4443.62,0.00053972,31]
[312729532,1706189497759,-500.0,0.00053972,31]
[312729533,1706189497768,-500.0,0.00053972,31]
[312729534,1706189497778,-876.57,0.00053972,31]
[312729535,1706189497787,-793.58,0.00053972,31]
[312729536,1706189497796,-605.29,0.00053972,31]
[312729537,1706189497806,-500.0,0.00053972,31]
[312729538,1706189497816,-798.73,0.00053972,31]
[312729539,1706189497826,-741.46,0.00053972,31]
[312729540,1706189497836,-522.59,0.00053972,31]
[312729541,1706189497845,-1440.42,0.00053972,31]
[312729542,1706189497856,-500.0,0.00053972,31]
[312729543,1706189497865,-3848.63,0.00053972,31]
[312729544,1706189497875,-659.44,0.00053972,31]
[312729545,1706189497884,-960.66,0.00053972,31]
[312729546,1706189497894,-3294.47,0.00053972,31]
[312729547,1706189497903,-1413.54,0.00053972,31]
[312729548,1706189497913,-557.9,0.00053972,31]
[312729549,1706189497922,-500.0,0.00053972,31]
[312729550,1706189497932,-500.0,0.00053972,31]
[312729551,1706189497942,-658.39,0.00053972,31]
[312729552,1706189497952,-196.42913372,0.00053972,31]
[312729553,1706189497962,-707.38,0.00053972,31]
[312729554,1706189497971,-806.49,0.00053972,31]
[312729555,1706189497981,-534.89,0.00053972,31]
[312729556,1706189497991,-1000.0,0.00053972,7]
[312729557,1706189498002,-2660.25,0.00053972,31]
[312729558,1706189498011,-654.66,0.00053972,31]
[312729559,1706189498021,-1220.14,0.00053972,31]
[312729560,1706189498031,-361.82770131,0.00053972,31]
[312729561,1706189498040,-697.52,0.00053972,31]
[312729562,1706189498050,-1219.85,0.00053972,31]
[312729563,1706189498059,-500.0,0.00053972,31]
[312729564,1706189498069,-2328.6,0.00053972,31]
[312729565,1706189498079,-500.0,0.00053972,31]
[312729566,1706189498089,-553.77,0.00053972,31]
[312729567,1706189498098,-2392.7,0.00053972,31]
[312729568,1706189498107,-242.36108282,0.00053972,31]
[312729569,1706189498117,-742.25,0.00053972,31]
[312729570,1706189498127,-500.0,0.00053972,31]
[312729571,1706189498136,-766.81,0.00053972,31]
[312729572,1706189498145,-720.22,0.00053972,31]
[312729573,1706189498155,-500.0,0.00053972,31]
[312729574,1706189498164,-506.85,0.00053972,31]
[312729575,1706189498174,-2585.71,0.00053972,31]
[312729576,1706189498183,-895.53,0.00053972,2]
[312729577,1706189498192,-500.0,0.00053972,31]
[312729578,1706189498201,-1966.47,0.00053972,30]
[312729579,1706189498211,-500.0,0.00053972,31]
[312729580,1706189498221,-568.09,0.00053972,31]
[312729581,1706189498231,-500.0,0.00053972,31]
[312729582,1706189498240,-1097.13,0.00053972,31]
[312729583,1706189498250,-678.21,0.00053972,31]
[312729584,1706189498259,-563.0,0.00053972,31]
[312729585,1706189498268,-505.22,0.00053972,31]
[312729586,1706189498278,-1184.05,0.00053972,7]
[312729587,1706189498287,-1978.23,0.00053972,31]
[312729588,1706189498297,-775.02,0.00053972,31]
[312729589,1706189498306,-500.0,0.00053972,31]
[312729590,1706189498316,-500.0,0.00053972,31]
[312729591,1706189498325,-500.0,0.00053972,31]
[312729592,1706189498334,-500.0,0.00053972,31]
[312729593,1706189498343,-563.64,0.00053972,31]
[312729594,1706189498353,-1788.81,0.00053972,31]
[312729595,1706189498363,-500.0,0.00053972,31]
[312729596,1706189498372,-824.87,0.00053972,31]
[312729597,1706189498381,-800.86,0.00053972,31]
[312729598,1706189498390,-500.0,0.00053972,31]
[312729599,1706189498400,-624.88,0.00053972,31]
[312729600,1706189498409,-500.0,0.00053972,31]
[312729601,1706189498418,-500.0,0.00053972,31]
[312729602,1706189498428,-500.0,0.00053972,31]
[312729603,1706189498437,-3861.01,0.00053972,5]
[312729604,1706189498446,-500.0,0.00053972,31]
[312729605,1706189498455,-500.0,0.00053972,31]
[312729606,1706189498465,-422.06235903,0.00053972,31]
[312729607,1706189498475,-562.52,0.00053972,31]
[312729608,1706189498484,-702.37,0.00053972,31]
[312729609,1706189498494,-308.96661997,0.00053972,31]
[312729610,1706189498503,-500.0,0.00053972,31]
[312729611,1706189498513,-500.0,0.00053972,31]
[312729612,1706189498523,-1562.8,0.00053972,31]
[312729613,1706189498532,-729.44,0.00053972,31]
[312729614,1706189498542,-674.25,0.00053972,31]
[312729615,1706189498551,-500.0,0.00053972,31]
[312729616,1706189498561,-1360.58,0.00053972,31]
[312729617,1706189498570,-694.83,0.00053972,2]
[312729618,1706189498579,-530.21,0.00053972,31]
[312729619,1706189498589,-500.0,0.00053972,31]
[312729620,1706189498598,-500.0,0.00053972,31]
[312729621,1706189498608,-650.93,0.00053972,31]
[312729622,1706189498617,-622.63,0.00053972,31]
[312729623,1706189498628,-1172.34,0.00053972,31]
[312729624,1706189498641,-1372.24,0.00053972,31]
[312729625,1706189498650,-500.0,0.00053972,31]
[312729626,1706189498660,-500.0,0.00053972,31]
[312729627,1706189498669,-500.0,0.00053972,31]
[312729628,1706189498678,-1771.9,0.00053972,31]
[312729629,1706189498689,-634.99,0.00053972,31]
[312729630,1706189498698,-270.0,0.00053973,12]
[312729631,1706189498707,-225.0,0.00053973,13]
[312729632,1706189498719,-331.0,0.0005399,2]
[312729633,1706189498728,-6809.32011501,0.00054,14]
[312729634,1706189498737,-5000.0,0.00054,2]
[312729635,1706189498746,-200.0,0.00054,28]
[312729636,1706189498755,-150.0,0.00054,120]
[312729637,1706189498765,-500000.0,0.00054,120]
[312729638,1706189498774,-300.0,0.00054,32]
[312729639,1706189498783,-500000.0,0.00054,120]
[312729640,1706189498792,-150.0,0.00054,32]
[312729641,1706189498801,-200.0,0.00054027,120]
[312729642,1706189498811,-302.0,0.00054067,4]
[312729643,1706189498821,-394.66,0.00054094,2]
[312729644,1706189498831,-600.0,0.00054109,120]
[312729645,1706189498841,-450.0,0.00054153,5]
[312729646,1706189498851,-152.0,0.00054182,7]
[312729647,1706189498862,-822.0,0.0005419,2]
[312729648,1706189498873,-221.0,0.0005419,2]
[312729649,1706189498882,-500000.0,0.000542,120]
[312729650,1706189498891,-12866.2686001,0.00054209,2]
[312729651,1706189498901,-632.99,0.00054246,31]
[312729652,1706189498913,-1224.41,0.00054246,31]
[312729653,1706189498923,-684.55,0.00054246,31]
[312729654,1706189498932,-500.0,0.00054246,31]
[312729655,1706189498941,-477.76705006,0.00054246,31]
[312729656,1706189498950,-591.91,0.00054246,31]
[312729657,1706189498959,-500.0,0.00054246,31]
[312729658,1706189498968,-503.96,0.00054246,31]
[312729659,1706189498978,-500.0,0.00054246,31]
[312729660,1706189498988,-500.0,0.00054246,14]
[312729661,1706189499000,-504.11,0.00054246,31]
[312729662,1706189499009,-237.18737283,0.00054246,31]
[312729663,1706189499018,-511.82,0.00054246,31]
[312729664,1706189499028,-578.99,0.00054246,31]
[312729665,1706189499037,-662.95,0.00054246,31]
[312729666,1706189499046,-584.81921463,0.00054246,31]
[312729667,1706189499055,-706.68,0.00054246,31]
[312729668,1706189499065,-500.0,0.00054246,31]
[312729669,1706189499074,-511.95,0.00054246,31]
[312729670,1706189499084,-500.0,0.00054246,31]
[312729671,1706189499093,-500.0,0.00054246,31]
[312729672,1706189499102,-644.17851517,0.00054246,31]
[312729673,1706189499112,-586.25,0.00054246,31]
[312729674,1706189499122,-500.0,0.00054246,31]
[312729675,1706189499131,-847.89,0.00054246,31]
[312729676,1706189499141,-341.86220198,0.00054246,31]
[312729677,1706189499151,-847.27,0.00054246,31]
[312729678,1706189499161,-553.41,0.00054246,2]
[312729679,1706189499170,-500.0,0.00054246,31]
[312729680,1706189499180,-552.54,0.00054246,31]
[312729681,1706189499191,-500.0,0.00054246,31]
[312729682,1706189499200,-500.0,0.00054246,31]
[312729683,1706189499211,-533.04,0.00054246,31]
[312729684,1706189499222,-1263.99,0.00054246,31]
[312729685,1706189499233,-500.0,0.00054246,31]
[312729686,1706189499243,-4443.62,0.00054246,31]
[312729687,1706189499253,-500.0,0.00054246,31]
[312729688,1706189499264,-500.0,0.00054246,31]
[312729689,1706189499274,-793.58,0.00054246,31]
[312729690,1706189499283,-876.57,0.00054246,31]
[312729691,1706189499292,-605.29,0.00054246,31]
[312729692,1706189499301,-520.80555674,0.00054246,31]
[312729693,1706189499311,-798.73,0.00054246,31]
[312729694,1706189499320,-741.46,0.00054246,31]
[312729695,1706189499330,-522.59,0.00054246,31]
[312729696,1706189499339,-1440.42,0.00054246,31]
[312729697,1706189499349,-500.0,0.00054246,31]
[312729698,1706189499361,-3848.63,0.00054246,31]
[312729699,1706189499372,-659.44,0.00054246,31]
[312729700,1706189499381,-960.66,0.00054246,31]
[312729701,1706189499391,-3294.47,0.00054246,31]
[312729702,1706189499400,-1413.54,0.00054246,31]
[312729703,1706189499411,-557.9,0.00054246,31]
[312729704,1706189499422,-500.0,0.00054246,31]
[312729705,1706189499431,-500.0,0.00054246,31]
[312729706,1706189499441,-658.39,0.00054246,31]
[312729707,1706189499451,-707.38,0.00054246,31]
[312729708,1706189499460,-806.49,0.00054246,31]
[312729709,1706189499470,-534.89,0.00054246,31]
[312729710,1706189499479,-1000.0,0.00054246,7]
[312729711,1706189499489,-2660.25,0.00054246,31]
[312729712,1706189499499,-654.66,0.00054246,31]
[312729713,1706189499509,-1220.14,0.00054246,31]
[312729714,1706189499518,-697.52,0.00054246,31]
[312729715,1706189499527,-1219.85,0.00054246,31]
[312729716,1706189499537,-500.0,0.00054246,31]
[312729717,1706189499546,-2328.6,0.00054246,31]
[312729718,1706189499555,-500.0,0.00054246,31]
[312729719,1706189499565,-553.77,0.00054246,31]
[312729720,1706189499574,-2392.7,0.00054246,31]
[312729721,1706189499583,-742.25,0.00054246,31]
[312729722,1706189499592,-500.0,0.00054246,31]
[312729723,1706189499602,-766.81,0.00054246,31]
[312729724,1706189499613,-720.22,0.00054246,31]
[312729725,1706189499624,-500.0,0.00054246,31]